[Event "Swiss Championship U10 2022"]
[Site "Biel"]
[Date "2022.07.20"]
[Round "6.5"]
[White "Wilhelm, Marco"]
[Black "Rams, Vedha"]
[Result "1-0"]
[ECO "B01"]
[WhiteElo "1332"]
[BlackElo "1312"]
[Annotator "NA RC COMBH"]
[PlyCount "103"]
[EventDate "2022.07.18"]
[EventType "swiss"]
[EventCountry "SUI"]
[SourceTitle "playchess.com"]
[Source "ChessBase"]
[SourceQuality "1"]
[TimeControl "5400+30"]

1. e4 {[%emt 0:00:03]} d5 {[%emt 0:00:07]} 2. exd5 {[%emt 0:00:17]} Qxd5 {[%emt 0:00:23]} 3. Nc3 {[%emt 0:00:06]} Qd8 {[%emt 0:00:16]} 4. Nf3 {[%emt 0:00:19]} Nc6 {[%emt 0:00:17]} 5. Bc4 {[%emt 0:01:01]} e5 {[%emt 0:00:28]} 6. d3 {[%emt 0:01:14]} Be7 {[%emt 0:01:30]} 7. Bd2 {[%emt 0:00:58]} Bg4 {[%emt 0:01:22]} 8. h3 {[%emt 0:00:43]} Bh5 {[%emt 0:00:14]} 9. Qe2 {[%emt 0:00:35]} Qd7 {[%emt 0:02:27]} 10. g4 {[%emt 0:02:08]} Bg6 {[%emt 0:00:59]} 11. Nxe5 {[%emt 0:00:58]} Nxe5 {[%emt 0:02:48]} 12. Qxe5 {[%emt 0:00:52]} O-O-O {[%emt 0:00:40]} 13. O-O-O {[%emt 0:01:07]} Bf6 {[%emt 0:07:53]} 14. Qe3 {[%emt 0:00:25]} Bd4 {[%emt 0:00:31]} 15. Qf3 {[%emt 0:02:01]} h5 {[%emt 0:01:15]} 16. Ba6 {[%emt 0:02:30]} c6 {[%emt 0:02:59]} 17. Bc4 {[%emt 0:00:48]} f5 {[%emt 0:01:33]} 18. gxf5 {[%emt 0:01:53]} Bxf5 {[%emt 0:01:12]} 19. Rde1 {[%emt 0:03:07]} Kb8 {[%emt 0:03:09]} 20. Qg3+ {[%emt 0:06:12]} Ka8 {[%emt 0:03:19]} 21. Qf3 {[%emt 0:05:39]} Nf6 {[%emt 0:01:41]} 22. Ne2 {[%emt 0:07:40]} Be5 {[%emt 0:10:14]} 23. Bc3 {[%emt 0:03:24]} Rhe8 {[%emt 0:03:11]} 24. Bxe5 {[%emt 0:01:30]} Rxe5 {[%emt 0:00:36]} 25. Nf4 {[%emt 0:03:52]} Rde8 {[%emt 0:01:44]} 26. Rxe5 {[%emt 0:01:21]} Rxe5 {[%emt 0:01:28]} 27. Kd1 {[%emt 0:00:41]} g5 {[%emt 0:02:09]} 28. Nxh5 {[%emt 0:01:51]} Qe7 {[%emt 0:03:22]} 29. Nxf6 {[%emt 0:01:10]} Qxf6 {[%emt 0:04:25]} 30. Re1 {[%emt 0:03:21]} a6 {[%emt 0:03:00]} 31. c3 {[%emt 0:02:32]} Qh8 {[%emt 0:05:19]} 32. Rxe5 {[%emt 0:01:34]} Qxe5 {[%emt 0:02:04]} 33. d4 {[%emt 0:01:21]} Qe4 {[%emt 0:00:00]} 34. Qxe4 {[%emt 0:00:32]} Bxe4 {[%emt 0:00:36]} 35. Be2 {[%emt 0:00:31]} Bb1 {[%emt 0:01:52]} 36. a3 {[%emt 0:00:07]} Kb8 {[%emt 0:00:29]} 37. Bg4 {[%emt 0:00:45]} Kc7 {[%emt 0:00:50]} 38. Ke2 {[%emt 0:00:17]} Be4 {[%emt 0:00:39]} 39. Ke3 {[%emt 0:00:25]} Bg2 {[%emt 0:01:15]} 40. f4 {[%emt 0:04:48]} gxf4+ {[%emt 0:04:10]} 41. Kxf4 {[%emt 0:00:25]} Bxh3 {[%emt 0:00:07]} 42. Bxh3 {[%emt 0:00:00]} Kd6 {[%emt 0:00:15]} 43. Ke4 {[%emt 0:00:00]} b6 {[%emt 0:02:23]} 44. c4 {[%emt 0:01:39]} a5 {[%emt 0:00:00]} 45. a4 {[%emt 0:00:00]} c5 {[%emt 0:01:18]} 46. b3 {[%emt 0:00:00]} cxd4 {[%emt 0:00:51]} 47. Kxd4 {[%emt 0:00:13]} Kc6 {[%emt 0:01:18]} 48. Bg2+ {[%emt 0:01:09]} Kd6 {[%emt 0:00:00]} 49. Bd5 {[%emt 0:00:55]} Kc7 {[%emt 0:00:00]} 50. Kc3 {[%emt 0:00:21]} Kd6 {[%emt 0:00:00]} 51. Kd4 {[%emt 0:00:38]} Kc7 {[%emt 0:00:00]} 52. c5 {[%emt 0:01:47]} 1-0

[Event "Swiss Championship U10 2022"]
[Site "Biel"]
[Date "2022.07.20"]
[Round "6.6"]
[White "Bachmann, Elias"]
[Black "Gong, Yansheng"]
[Result "1/2-1/2"]
[ECO "D37"]
[WhiteElo "1319"]
[BlackElo "1285"]
[Annotator "NA RC COMBH"]
[PlyCount "67"]
[EventDate "2022.07.18"]
[EventType "swiss"]
[EventCountry "SUI"]
[SourceTitle "playchess.com"]
[Source "ChessBase"]
[SourceQuality "1"]
[TimeControl "5400+30"]

1. d4 {[%emt 0:00:01]} d5 {[%emt 0:00:06]} 2. c4 {[%emt 0:00:04]} e6 {[%emt 0:00:09]} 3. Nc3 {[%emt 0:00:06]} Be7 {[%emt 0:00:08]} 4. Bf4 {[%emt 0:00:07]} Nf6 {[%emt 0:00:11]} 5. Nf3 {[%emt 0:00:18]} O-O {[%emt 0:00:12]} 6. e3 {[%emt 0:00:33]} b6 {[%emt 0:00:11]} 7. Nb5 {[%emt 0:00:20]} Bd6 {[%emt 0:00:36]} 8. Nxd6 {[%emt 0:01:18]} cxd6 {[%emt 0:00:12]} 9. Rc1 {[%emt 0:01:23]} Bb7 {[%emt 0:00:23]} 10. Bd3 {[%emt 0:00:29]} Nbd7 {[%emt 0:00:25]} 11. Bxd6 {[%emt 0:00:21]} Re8 {[%emt 0:00:18]} 12. O-O {[%emt 0:00:23]} Ne4 {[%emt 0:00:51]} 13. cxd5 {[%emt 0:01:05]} Nxd6 {[%emt 0:00:27]} 14. dxe6 {[%emt 0:01:06]} Rxe6 {[%emt 0:00:23]} 15. Re1 {[%emt 0:02:25]} Rc8 {[%emt 0:00:55]} 16. Rxc8 {[%emt 0:01:13]} Qxc8 {[%emt 0:00:34]} 17. Ng5 {[%emt 0:00:25]} Rh6 {[%emt 0:00:49]} 18. Qb3 {[%emt 0:02:35]} Qc6 {[%emt 0:00:36]} 19. f3 {[%emt 0:03:34]} Rh5 {[%emt 0:01:23]} 20. Ne4 {[%emt 0:02:38]} Nxe4 {[%emt 0:04:24]} 21. Bxe4 {[%emt 0:00:08]} Qc7 {[%emt 0:00:18]} 22. Bxb7 {[%emt 0:00:18]} Qxb7 {[%emt 0:00:17]} 23. Qc4 {[%emt 0:01:43]} Qb8 {[%emt 0:00:52]} 24. f4 {[%emt 0:01:10]} g5 {[%emt 0:01:14]} 25. Qe2 {[%emt 0:00:23]} Nf6 {[%emt 0:01:06]} 26. g3 {[%emt 0:01:36]} Qc8 {[%emt 0:00:48]} 27. e4 {[%emt 0:00:49]} Ng4 {[%emt 0:02:38]} 28. f5 {[%emt 0:00:18]} Rxh2 {[%emt 0:02:31]} 29. Qxg4 {[%emt 0:00:13]} Rxb2 {[%emt 0:01:40]} 30. Qxg5+ {[%emt 0:01:10]} Kf8 {[%emt 0:00:30]} 31. Rc1 {[%emt 0:00:32]} Rc2 {[%emt 0:02:40]} 32. Rd1 {[%emt 0:00:54]} Rxa2 {[%emt 0:00:41]} 33. Qh6+ {[%emt 0:00:41]} Ke8 {[%emt 0:00:56]} 34. Rc1 {[%emt 0:00:32]} 1/2-1/2

[Event "Swiss Championship U10 2022"]
[Site "Biel"]
[Date "2022.07.20"]
[Round "6.7"]
[White "Cavadini, Tommaso"]
[Black "Gregor, Elena"]
[Result "0-1"]
[ECO "C77"]
[WhiteElo "1290"]
[BlackElo "1258"]
[Annotator "NA RC COMBH"]
[PlyCount "42"]
[EventDate "2022.07.18"]
[EventType "swiss"]
[EventCountry "SUI"]
[SourceTitle "playchess.com"]
[Source "ChessBase"]
[SourceQuality "1"]
[TimeControl "5400+30"]

1. e4 {[%emt 0:01:44]} e5 {[%emt 0:02:14]} 2. Nf3 {[%emt 0:00:32]} Nc6 {[%emt 0:00:33]} 3. Bb5 {[%emt 0:00:00]} a6 {[%emt 0:00:17]} 4. Ba4 {[%emt 0:00:00]} b5 {[%emt 0:00:16]} 5. Bb3 {[%emt 0:00:13]} Nf6 {[%emt 0:00:04]} 6. O-O {[%emt 0:00:00]} Bc5 {[%emt 0:00:41]} 7. Nc3 {[%emt 0:00:00]} d6 {[%emt 0:00:26]} 8. h3 {[%emt 0:00:26]} h6 {[%emt 0:00:00]} 9. d3 {[%emt 0:01:23]} g5 {[%emt 0:02:47]} 10. g4 {[%emt 0:03:05]} Nxg4 {[%emt 0:02:19]} 11. Nxg5 {[%emt 0:02:21]} hxg5 {[%emt 0:01:46]} 12. hxg4 {[%emt 0:01:33]} Qf6 {[%emt 0:05:51]} 13. Bxg5 {[%emt 0:02:35]} Qxg5 {[%emt 0:01:40]} 14. Qf3 {[%emt 0:00:57]} f6 {[%emt 0:01:07]} 15. Nd5 {[%emt 0:01:21]} Bxg4 {[%emt 0:00:50]} 16. Qg3 {[%emt 0:05:24]} O-O-O {[%emt 0:04:13]} 17. Ne3 {[%emt 0:05:44]} Rh4 {[%emt 0:03:30]} 18. Nxg4 {[%emt 0:00:00]} Qxg4 {[%emt 0:00:46]} 19. Be6+ {[%emt 0:00:00]} Qxe6 {[%emt 0:00:18]} 20. Qxh4 {[%emt 0:06:51]} Nd4 {[%emt 0:02:28]} 21. c3 {[%emt 0:00:00]} Nf3+ {[%emt 0:00:29]} 0-1

[Event "Swiss Championship U10 2022"]
[Site "Biel"]
[Date "2022.07.20"]
[Round "6.8"]
[White "Sunilkumar, Prathyush"]
[Black "Parmelin, Axel"]
[Result "1-0"]
[ECO "D07"]
[WhiteElo "1336"]
[BlackElo "1298"]
[Annotator "NA RC COMBH"]
[PlyCount "61"]
[EventDate "2022.07.18"]
[EventType "swiss"]
[EventCountry "SUI"]
[SourceTitle "playchess.com"]
[Source "ChessBase"]
[SourceQuality "1"]
[TimeControl "5400+30"]

1. d4 {[%emt 0:00:51]} d5 {[%emt 0:00:09]} 2. c4 {[%emt 0:00:29]} Nf6 {[%emt 0:01:04]} 3. Nf3 {[%emt 0:01:36]} Bg4 {[%emt 0:01:10]} 4. Nc3 {[%emt 0:02:56]} Nc6 {[%emt 0:00:00]} 5. Bf4 {[%emt 0:02:20]} e6 {[%emt 0:00:03]} 6. a3 {[%emt 0:00:43]} Bxf3 {[%emt 0:00:37]} 7. exf3 {[%emt 0:00:21]} dxc4 {[%emt 0:00:17]} 8. Be3 {[%emt 0:01:24]} e5 {[%emt 0:00:38]} 9. d5 {[%emt 0:03:03]} Na5 {[%emt 0:00:58]} 10. Qa4+ {[%emt 0:02:15]} Nc6 {[%emt 0:01:15]} 11. dxc6 {[%emt 0:00:43]} Rb8 {[%emt 0:00:54]} 12. cxb7+ {[%emt 0:00:43]} Nd7 {[%emt 0:00:21]} 13. Bxc4 {[%emt 0:03:59]} Bd6 {[%emt 0:02:02]} 14. Qb3 {[%emt 0:00:00]} Bc5 {[%emt 0:01:21]} 15. Bxf7+ {[%emt 0:02:00]} Kf8 {[%emt 0:00:17]} 16. Bd5 {[%emt 0:00:00]} Bd4 {[%emt 0:00:58]} 17. Qb4+ {[%emt 0:01:13]} Bc5 {[%emt 0:01:44]} 18. Bxc5+ {[%emt 0:00:46]} Ke8 {[%emt 0:01:58]} 19. O-O {[%emt 0:00:00]} Qg5 {[%emt 0:01:50]} 20. Bxa7 {[%emt 0:01:49]} Qd8 {[%emt 0:01:01]} 21. Bc6 {[%emt 0:01:29]} Rf8 {[%emt 0:04:59]} 22. Rae1 {[%emt 0:00:12]} Rf7 {[%emt 0:00:30]} 23. Re2 {[%emt 0:00:00]} Rf6 {[%emt 0:01:09]} 24. Rxe5+ {[%emt 0:00:00]} Kf7 {[%emt 0:00:22]} 25. Bd5+ {[%emt 0:00:00]} Kg6 {[%emt 0:00:30]} 26. Rg5+ {[%emt 0:01:24]} Kxg5 {[%emt 0:00:49]} 27. Qg4+ {[%emt 0:00:18]} Kh6 {[%emt 0:00:19]} 28. Be3+ {[%emt 0:00:00]} Rf4 {[%emt 0:00:21]} 29. Bxf4+ {[%emt 0:00:00]} g5 {[%emt 0:01:01]} 30. Be3 {[%emt 0:03:55]} Nf6 {[%emt 0:00:00]} 31. Qxg5# {[%emt 0:00:10]} 1-0

[Event "Swiss Championship U10 2022"]
[Site "Biel"]
[Date "2022.07.21"]
[Round "7.1"]
[White "Domschke, Mischa"]
[Black "Jordan, Christina"]
[Result "0-1"]
[ECO "D00"]
[WhiteElo "1565"]
[BlackElo "1367"]
[Annotator "NA RC COMBH"]
[PlyCount "81"]
[EventDate "2022.07.18"]
[EventType "swiss"]
[EventCountry "SUI"]
[SourceTitle "playchess.com"]
[Source "ChessBase"]
[SourceQuality "1"]
[TimeControl "5400+30"]

1. d4 {[%emt 0:00:01]} d5 {[%emt 0:00:05]} 2. Nc3 {[%emt 0:00:06]} Nf6 {[%emt 0:00:10]} 3. Bf4 {[%emt 0:00:10]} a6 {[%emt 0:00:17]} 4. e3 {[%emt 0:00:08]} Nc6 {[%emt 0:00:19]} 5. Bd3 {[%emt 0:00:42]} e6 {[%emt 0:00:28]} 6. a3 {[%emt 0:00:00]} Bd6 {[%emt 0:00:08]} 7. Bg3 {[%emt 0:00:00]} O-O {[%emt 0:00:11]} 8. Nf3 {[%emt 0:00:39]} Re8 {[%emt 0:01:36]} 9. Qd2 {[%emt 0:01:16]} e5 {[%emt 0:00:40]} 10. dxe5 {[%emt 0:00:44]} Nxe5 {[%emt 0:00:43]} 11. Nxe5 {[%emt 0:00:00]} Bxe5 {[%emt 0:00:13]} 12. O-O-O {[%emt 0:07:08]} c6 {[%emt 0:01:11]} 13. Bxe5 {[%emt 0:00:00]} Rxe5 {[%emt 0:00:30]} 14. h3 {[%emt 0:02:48]} b5 {[%emt 0:00:56]} 15. f4 {[%emt 0:06:03]} Re7 {[%emt 0:01:11]} 16. g4 {[%emt 0:02:33]} Nd7 {[%emt 0:05:09]} 17. Ne2 {[%emt 0:02:15]} Qb6 {[%emt 0:13:05]} 18. Nd4 {[%emt 0:00:00]} Nc5 {[%emt 0:01:24]} 19. f5 {[%emt 0:01:21]} f6 {[%emt 0:00:16]} 20. Rde1 {[%emt 0:01:07]} Ne4 {[%emt 0:01:13]} 21. Bxe4 {[%emt 0:01:04]} Rxe4 {[%emt 0:01:02]} 22. Nf3 {[%emt 0:00:00]} Bb7 {[%emt 0:01:48]} 23. g5 {[%emt 0:01:11]} c5 {[%emt 0:01:44]} 24. Rhg1 {[%emt 0:03:34]} Rae8 {[%emt 0:01:51]} 25. Qc3 {[%emt 0:00:51]} d4 {[%emt 0:01:16]} 26. exd4 {[%emt 0:00:00]} Rxe1+ {[%emt 0:00:48]} 27. Rxe1 {[%emt 0:00:00]} Rxe1+ {[%emt 0:00:13]} 28. Qxe1 {[%emt 0:02:12]} Kf8 {[%emt 0:02:58]} 29. gxf6 {[%emt 0:06:01]} gxf6 {[%emt 0:05:04]} 30. dxc5 {[%emt 0:02:14]} Qxc5 {[%emt 0:02:08]} 31. c3 {[%emt 0:00:42]} Bxf3 {[%emt 0:01:52]} 32. Qd2 {[%emt 0:00:42]} Qg1+ {[%emt 0:00:14]} 33. Kc2 {[%emt 0:00:10]} Qg2 {[%emt 0:00:36]} 34. Qxg2 {[%emt 0:00:08]} Bxg2 {[%emt 0:00:18]} 35. Kd3 {[%emt 0:00:00]} Bxh3 {[%emt 0:00:10]} 36. Ke4 {[%emt 0:00:32]} Ke7 {[%emt 0:00:12]} 37. b3 {[%emt 0:00:31]} Kd6 {[%emt 0:00:10]} 38. b4 {[%emt 0:00:38]} h5 {[%emt 0:00:18]} 39. Kf4 {[%emt 0:00:21]} h4 {[%emt 0:00:00]} 40. Ke4 {[%emt 0:00:41]} Bxf5+ {[%emt 0:00:11]} 41. Kd4 {[%emt 0:00:26]} 0-1

[Event "Swiss Championship U10 2022"]
[Site "Biel"]
[Date "2022.07.21"]
[Round "7.2"]
[White "Chockalingam, Vishak"]
[Black "Bhingare, Joshua"]
[Result "1-0"]
[ECO "B13"]
[WhiteElo "1285"]
[BlackElo "1342"]
[Annotator "NA RC COMBH"]
[PlyCount "107"]
[EventDate "2022.07.18"]
[EventType "swiss"]
[EventCountry "SUI"]
[SourceTitle "playchess.com"]
[Source "ChessBase"]
[SourceQuality "1"]
[TimeControl "5400+30"]

1. d4 {[%emt 0:00:17]} d5 {[%emt 0:00:13]} 2. Bf4 {[%emt 0:00:35]} Nf6 {[%emt 0:00:44]} 3. Nf3 {[%emt 0:00:18]} c5 {[%emt 0:00:38]} 4. e3 {[%emt 0:01:47]} cxd4 {[%emt 0:00:12]} 5. exd4 {[%emt 0:00:15]} Nc6 {[%emt 0:01:25]} 6. c3 {[%emt 0:01:22]} Bf5 {[%emt 0:01:31]} 7. Bd3 {[%emt 0:01:34]} Bxd3 {[%emt 0:00:18]} 8. Qxd3 {[%emt 0:00:35]} e6 {[%emt 0:00:56]} 9. Nbd2 {[%emt 0:01:51]} Be7 {[%emt 0:02:22]} 10. O-O {[%emt 0:00:15]} O-O {[%emt 0:02:15]} 11. h3 {[%emt 0:02:17]} h6 {[%emt 0:01:59]} 12. Rfe1 {[%emt 0:01:15]} Rc8 {[%emt 0:05:50]} 13. Bh2 {[%emt 0:02:37]} Bd6 {[%emt 0:00:49]} 14. Bxd6 {[%emt 0:00:09]} Qxd6 {[%emt 0:00:18]} 15. Ne5 {[%emt 0:01:41]} Qb8 {[%emt 0:03:10]} 16. Ndf3 {[%emt 0:01:02]} Ne4 {[%emt 0:00:16]} 17. Nd7 {[%emt 0:00:46]} Qd6 {[%emt 0:00:18]} 18. Nxf8 {[%emt 0:00:04]} Rxf8 {[%emt 0:00:42]} 19. Nd2 {[%emt 0:00:57]} Nxd2 {[%emt 0:00:11]} 20. Qxd2 {[%emt 0:01:19]} Re8 {[%emt 0:00:36]} 21. Rad1 {[%emt 0:01:42]} Na5 {[%emt 0:01:22]} 22. b3 {[%emt 0:00:50]} Rc8 {[%emt 0:02:03]} 23. Re3 {[%emt 0:03:49]} Nc6 {[%emt 0:01:35]} 24. Rg3 {[%emt 0:02:51]} Ne7 {[%emt 0:03:19]} 25. Rf3 {[%emt 0:03:17]} Ng6 {[%emt 0:17:03]} 26. Rg3 {[%emt 0:03:33]} a5 {[%emt 0:03:11]} 27. c4 {[%emt 0:02:47]} dxc4 {[%emt 0:00:46]} 28. Qxa5 {[%emt 0:00:42]} Nf4 {[%emt 0:09:35]} 29. Kf1 {[%emt 0:06:57]} e5 {[%emt 0:01:13]} 30. Qxe5 {[%emt 0:00:14]} Qxe5 {[%emt 0:00:10]} 31. dxe5 {[%emt 0:00:08]} c3 {[%emt 0:00:52]} 32. Rc1 {[%emt 0:00:09]} c2 {[%emt 0:02:42]} 33. Re3 {[%emt 0:01:20]} Kh7 {[%emt 0:02:29]} 34. g3 {[%emt 0:01:50]} Nd5 {[%emt 0:01:19]} 35. Re2 {[%emt 0:01:03]} Nb4 {[%emt 0:00:44]} 36. a3 {[%emt 0:05:51]} Nc6 {[%emt 0:01:38]} 37. Rexc2 {[%emt 0:00:13]} Re8 {[%emt 0:00:28]} 38. Rc5 {[%emt 0:00:46]} Nd4 {[%emt 0:00:55]} 39. R1c3 {[%emt 0:00:48]} Nc6 {[%emt 0:00:55]} 40. b4 {[%emt 0:02:29]} Re6 {[%emt 0:00:52]} 41. f4 {[%emt 0:00:21]} g6 {[%emt 0:00:20]} 42. b5 {[%emt 0:00:39]} Nd4 {[%emt 0:01:11]} 43. a4 {[%emt 0:01:00]} b6 {[%emt 0:00:29]} 44. Rc7 {[%emt 0:00:15]} Kg7 {[%emt 0:00:30]} 45. Rd7 {[%emt 0:00:41]} Nf5 {[%emt 0:01:13]} 46. Kf2 {[%emt 0:03:08]} Re7 {[%emt 0:01:24]} 47. Rcc7 {[%emt 0:01:46]} Kf8 {[%emt 0:00:57]} 48. Rb7 {[%emt 0:00:06]} Rxd7 {[%emt 0:00:10]} 49. Rxd7 {[%emt 0:01:15]} Ne7 {[%emt 0:00:33]} 50. Rd6 {[%emt 0:00:14]} Ke8 {[%emt 0:00:12]} 51. Rxb6 {[%emt 0:00:19]} Kd8 {[%emt 0:00:42]} 52. a5 {[%emt 0:00:42]} Nc8 {[%emt 0:00:17]} 53. Rb7 {[%emt 0:00:25]} Ke8 {[%emt 0:00:34]} 54. a6 {[%emt 0:00:36]} 1-0

[Event "Swiss Championship U10 2022"]
[Site "Biel"]
[Date "2022.07.21"]
[Round "7.3"]
[White "Wilhelm, Marco"]
[Black "Saminskij, Jan"]
[Result "0-1"]
[ECO "C47"]
[WhiteElo "1332"]
[BlackElo "1487"]
[Annotator "NA RC COMBH"]
[PlyCount "62"]
[EventDate "2022.07.18"]
[EventType "swiss"]
[EventCountry "SUI"]
[SourceTitle "playchess.com"]
[Source "ChessBase"]
[SourceQuality "1"]
[TimeControl "5400+30"]

1. e4 {[%emt 0:00:01]} Nf6 {[%emt 0:00:18]} 2. Nc3 {[%emt 0:06:54]} e5 {[%emt 0:06:27]} 3. Nf3 {[%emt 0:01:33]} Nc6 {[%emt 0:01:02]} 4. d3 {[%emt 0:00:00]} Bc5 {[%emt 0:02:32]} 5. h3 {[%emt 0:00:00]} h6 {[%emt 0:04:52]} 6. Be2 {[%emt 0:02:33]} d6 {[%emt 0:02:40]} 7. Bd2 {[%emt 0:03:14]} Be6 {[%emt 0:04:05]} 8. Qc1 {[%emt 0:04:10]} Nd4 {[%emt 0:08:09]} 9. Na4 {[%emt 0:15:17]} Nxe2 {[%emt 0:05:23]} 10. Kxe2 {[%emt 0:01:23]} Bb6 {[%emt 0:03:34]} 11. Nxb6 {[%emt 0:02:21]} axb6 {[%emt 0:00:06]} 12. Be3 {[%emt 0:01:20]} Qd7 {[%emt 0:08:43]} 13. Qd2 {[%emt 0:01:37]} Qb5 {[%emt 0:01:38]} 14. Qc3 {[%emt 0:01:50]} Nxe4 {[%emt 0:09:07]} 15. Qe1 {[%emt 0:07:04]} Nc5 {[%emt 0:05:27]} 16. b4 {[%emt 0:08:59]} e4 {[%emt 0:02:43]} 17. bxc5 {[%emt 0:02:05]} exf3+ {[%emt 0:00:06]} 18. Kxf3 {[%emt 0:03:53]} bxc5 {[%emt 0:01:27]} 19. Kg3 {[%emt 0:02:18]} O-O {[%emt 0:01:55]} 20. Qd2 {[%emt 0:02:50]} Kh7 {[%emt 0:02:20]} 21. Kh2 {[%emt 0:00:00]} Bxa2 {[%emt 0:00:24]} 22. Raf1 {[%emt 0:00:33]} Be6 {[%emt 0:01:18]} 23. f4 {[%emt 0:00:35]} f5 {[%emt 0:00:06]} 24. Rhg1 {[%emt 0:00:52]} Qd7 {[%emt 0:02:03]} 25. g3 {[%emt 0:01:21]} Ra2 {[%emt 0:01:09]} 26. Qg2 {[%emt 0:00:31]} h5 {[%emt 0:00:25]} 27. Kh1 {[%emt 0:02:02]} c6 {[%emt 0:00:47]} 28. Qe2 {[%emt 0:07:58]} g6 {[%emt 0:00:30]} 29. Qg2 {[%emt 0:00:53]} Bd5 {[%emt 0:00:06]} 30. d4 {[%emt 0:00:56]} Bxg2+ {[%emt 0:00:07]} 31. Rxg2 {[%emt 0:00:12]} Re8 {[%emt 0:00:08]} 0-1

[Event "Swiss Championship U10 2022"]
[Site "Biel"]
[Date "2022.07.21"]
[Round "7.4"]
[White "Kumar, Shreyank"]
[Black "Bachmann, Elias"]
[Result "1-0"]
[ECO "C55"]
[WhiteElo "1404"]
[BlackElo "1319"]
[Annotator "NA RC COMBH"]
[PlyCount "57"]
[EventDate "2022.07.18"]
[EventType "swiss"]
[EventCountry "SUI"]
[SourceTitle "playchess.com"]
[Source "ChessBase"]
[SourceQuality "1"]
[TimeControl "5400+30"]

1. e4 {[%emt 0:00:07]} e5 {[%emt 0:00:32]} 2. Nf3 {[%emt 0:00:26]} Nc6 {[%emt 0:00:00]} 3. Bc4 {[%emt 0:00:18]} Nf6 {[%emt 0:00:00]} 4. d3 {[%emt 0:00:21]} Bb4+ {[%emt 0:00:42]} 5. c3 {[%emt 0:00:08]} Ba5 {[%emt 0:00:21]} 6. O-O {[%emt 0:00:38]} d5 {[%emt 0:00:21]} 7. exd5 {[%emt 0:00:14]} Nxd5 {[%emt 0:00:20]} 8. Re1 {[%emt 0:01:06]} O-O {[%emt 0:00:34]} 9. Bxd5 {[%emt 0:00:25]} Qxd5 {[%emt 0:00:16]} 10. b4 {[%emt 0:04:43]} Bb6 {[%emt 0:00:42]} 11. c4 {[%emt 0:02:04]} Qd8 {[%emt 0:06:35]} 12. c5 {[%emt 0:00:12]} Nxb4 {[%emt 0:00:20]} 13. cxb6 {[%emt 0:00:00]} axb6 {[%emt 0:03:05]} 14. Ba3 {[%emt 0:05:06]} c5 {[%emt 0:00:33]} 15. Bxb4 {[%emt 0:00:00]} cxb4 {[%emt 0:00:49]} 16. d4 {[%emt 0:00:49]} exd4 {[%emt 0:02:13]} 17. Qxd4 {[%emt 0:02:58]} Qc7 {[%emt 0:00:10]} 18. Nbd2 {[%emt 0:00:00]} Rd8 {[%emt 0:04:17]} 19. Rac1 {[%emt 0:00:46]} Qd7 {[%emt 0:03:02]} 20. Qxb6 {[%emt 0:00:00]} Rxa2 {[%emt 0:00:00]} 21. Qxb4 {[%emt 0:00:00]} Ra6 {[%emt 0:08:34]} 22. Qd4 {[%emt 0:00:48]} Rd6 {[%emt 0:00:00]} 23. Qb4 {[%emt 0:01:34]} h6 {[%emt 0:02:29]} 24. Qf4 {[%emt 0:06:42]} Rf6 {[%emt 0:04:04]} 25. Qe4 {[%emt 0:01:46]} Re6 {[%emt 0:00:00]} 26. Qb1 {[%emt 0:01:24]} Rd6 {[%emt 0:01:35]} 27. Nc4 {[%emt 0:00:37]} Rf6 {[%emt 0:02:21]} 28. Nb6 {[%emt 0:01:25]} Qg4 {[%emt 0:00:00]} 29. h3 {[%emt 0:00:10]} 1-0

[Event "Swiss Championship U10 2022"]
[Site "Biel"]
[Date "2022.07.21"]
[Round "7.5"]
[White "Parmelin, Axel"]
[Black "Pahud, Kylian"]
[Result "0-1"]
[ECO "C64"]
[WhiteElo "1298"]
[BlackElo "1373"]
[Annotator "NA RC COMBH"]
[PlyCount "84"]
[EventDate "2022.07.18"]
[EventType "swiss"]
[EventCountry "SUI"]
[SourceTitle "playchess.com"]
[Source "ChessBase"]
[SourceQuality "1"]
[TimeControl "5400+30"]

1. e4 {[%emt 0:00:17]} e5 {[%emt 0:00:09]} 2. Nf3 {[%emt 0:00:00]} Nc6 {[%emt 0:00:56]} 3. Nc3 {[%emt 0:00:09]} Bc5 {[%emt 0:01:53]} 4. Bb5 {[%emt 0:01:16]} d6 {[%emt 0:01:01]} 5. O-O {[%emt 0:01:12]} Nge7 {[%emt 0:03:05]} 6. d3 {[%emt 0:01:49]} O-O {[%emt 0:01:24]} 7. Bg5 {[%emt 0:00:31]} Bd7 {[%emt 0:01:26]} 8. Nd5 {[%emt 0:04:25]} f6 {[%emt 0:00:46]} 9. Bh4 {[%emt 0:00:00]} Nxd5 {[%emt 0:03:46]} 10. Bc4 {[%emt 0:02:17]} Kh8 {[%emt 0:00:32]} 11. Bxd5 {[%emt 0:00:48]} Nb4 {[%emt 0:02:31]} 12. Bc4 {[%emt 0:04:16]} Bg4 {[%emt 0:03:01]} 13. c3 {[%emt 0:01:08]} Nc6 {[%emt 0:00:47]} 14. b4 {[%emt 0:00:00]} Bb6 {[%emt 0:01:03]} 15. a4 {[%emt 0:00:00]} a5 {[%emt 0:01:01]} 16. b5 {[%emt 0:00:02]} Ne7 {[%emt 0:01:32]} 17. Qe2 {[%emt 0:01:05]} Ng6 {[%emt 0:01:22]} 18. Bg3 {[%emt 0:00:49]} f5 {[%emt 0:01:46]} 19. exf5 {[%emt 0:03:05]} Bxf5 {[%emt 0:01:41]} 20. Bd5 {[%emt 0:02:52]} c5 {[%emt 0:01:05]} 21. bxc6 {[%emt 0:00:27]} bxc6 {[%emt 0:00:07]} 22. Bxc6 {[%emt 0:00:26]} Rc8 {[%emt 0:02:29]} 23. Bb5 {[%emt 0:02:36]} Rxc3 {[%emt 0:00:00]} 24. Rfd1 {[%emt 0:02:45]} Rc7 {[%emt 0:01:19]} 25. d4 {[%emt 0:02:18]} Bg4 {[%emt 0:03:17]} 26. Qd3 {[%emt 0:03:09]} Bxf3 {[%emt 0:00:16]} 27. gxf3 {[%emt 0:00:12]} Bxd4 {[%emt 0:00:26]} 28. f4 {[%emt 0:00:32]} Bxa1 {[%emt 0:03:04]} 29. f5 {[%emt 0:03:10]} Ne7 {[%emt 0:00:47]} 30. Rxa1 {[%emt 0:01:20]} Nxf5 {[%emt 0:01:27]} 31. Rd1 {[%emt 0:00:50]} Nxg3 {[%emt 0:00:46]} 32. hxg3 {[%emt 0:03:04]} Rf6 {[%emt 0:00:47]} 33. Bc4 {[%emt 0:05:45]} h6 {[%emt 0:00:26]} 34. Bb3 {[%emt 0:00:00]} Qf8 {[%emt 0:07:01]} 35. Rf1 {[%emt 0:00:50]} Rb7 {[%emt 0:01:21]} 36. Bc2 {[%emt 0:00:55]} g5 {[%emt 0:01:24]} 37. Qe4 {[%emt 0:00:00]} Qf7 {[%emt 0:01:47]} 38. Qd3 {[%emt 0:00:00]} Rb8 {[%emt 0:00:50]} 39. Bb3 {[%emt 0:01:55]} Rf3 {[%emt 0:02:26]} 40. Qxd6 {[%emt 0:00:00]} Rbxb3 {[%emt 0:00:42]} 41. Qxh6+ {[%emt 0:00:00]} Qh7 {[%emt 0:01:08]} 42. Qf8+ {[%emt 0:00:00]} Rxf8 {[%emt 0:00:29]} 0-1